[Event "Late-Titled-Tuesday-Blitz-January-23-2024"]
[Site "Chess.com"]
[Date "2024.01.23"]
[Round "9"]
[White "alexgo05"]
[Black "ProChessWICTH"]
[Result "0-1"]
[WhiteElo "2381"]
[BlackElo "2521"]
[TimeControl "180+1"]
[EndTime "15:42:37 PST"]
[Termination "ProChessWICTH won by resignation"]

1. c4 {[%clk 0:03:00.3]} 1... Nf6 {[%clk 0:02:59.3]} 2. Nc3 {[%clk 0:02:59.3]}
2... d5 {[%clk 0:02:58.6]} 3. cxd5 {[%clk 0:02:54.9]} 3... Nxd5 {[%clk
0:02:59.5]} 4. e4 {[%clk 0:02:49.7]} 4... Nb6 {[%clk 0:02:58.3]} 5. d4 {[%clk
0:02:49.2]} 5... g6 {[%clk 0:02:58.6]} 6. Be3 {[%clk 0:02:45.9]} 6... Bg7 {[%clk
0:02:58.1]} 7. h3 {[%clk 0:02:39.3]} 7... O-O {[%clk 0:02:57.9]} 8. Nf3 {[%clk
0:02:39.8]} 8... Nc6 {[%clk 0:02:32.1]} 9. Be2 {[%clk 0:02:36.1]} 9... e5 {[%clk
0:02:27.1]} 10. dxe5 {[%clk 0:02:31.1]} 10... Nxe5 {[%clk 0:02:25.7]} 11. Nxe5
{[%clk 0:02:24.2]} 11... Bxe5 {[%clk 0:02:23]} 12. Qc2 {[%clk 0:02:22.3]} 12...
c6 {[%clk 0:02:15.4]} 13. Rd1 {[%clk 0:02:11.5]} 13... Qc7 {[%clk 0:02:13.1]}
14. O-O {[%clk 0:02:11.1]} 14... Bf4 {[%clk 0:02:06.7]} 15. Bxf4 {[%clk
0:01:58.4]} 15... Qxf4 {[%clk 0:02:07.6]} 16. Bf3 {[%clk 0:01:43]} 16... Bxh3
{[%clk 0:02:04.1]} 17. e5 {[%clk 0:01:35.5]} 17... Bf5 {[%clk 0:01:41.5]} 18.
Qb3 {[%clk 0:01:27.1]} 18... Qxe5 {[%clk 0:01:38.6]} 19. Rfe1 {[%clk 0:01:27.5]}
19... Qf6 {[%clk 0:01:30.9]} 20. a4 {[%clk 0:01:25.7]} 20... Rab8 {[%clk
0:01:24.4]} 21. a5 {[%clk 0:01:22.8]} 21... Nd7 {[%clk 0:01:17.6]} 22. g4 {[%clk
0:01:19.7]} 22... Be6 {[%clk 0:01:00.3]} 23. Rxe6 {[%clk 0:01:19.6]} 23... fxe6
{[%clk 0:01:00]} 24. Rxd7 {[%clk 0:01:19.6]} 24... Qxf3 {[%clk 0:00:56.5]} 25.
Qxe6+ {[%clk 0:01:20.2]} 25... Rf7 {[%clk 0:00:50.6]} 26. Ne4 {[%clk 0:01:19.9]}
26... Rf8 {[%clk 0:00:23.4]} 27. g5 {[%clk 0:00:52.9]} 27... Qf5 {[%clk
0:00:07.6]} 28. Nf6+ {[%clk 0:00:53.2]} 28... Kg7 {[%clk 0:00:05.3]} 29. Rxf7+
{[%clk 0:00:50.6]} 29... Rxf7 {[%clk 0:00:05.3]} 30. Qe3 {[%clk 0:00:50.6]}
30... h6 {[%clk 0:00:04.4]} 31. Ne8+ {[%clk 0:00:49]} 31... Kf8 {[%clk
0:00:05.1]} 32. gxh6 {[%clk 0:00:45.9]} 32... Qg4+ {[%clk 0:00:05.2]} 33. Kf1
{[%clk 0:00:45.3]} 33... Qd1+ {[%clk 0:00:05.5]} 34. Kg2 {[%clk 0:00:45.7]}
34... Qd5+ {[%clk 0:00:06.1]} 35. Kg1 {[%clk 0:00:44.7]} 35... Qd1+ {[%clk
0:00:04.4]} 36. Kg2 {[%clk 0:00:44.1]} 36... Qd5+ {[%clk 0:00:04.5]} 37. Kh2
{[%clk 0:00:43.1]} 37... Re7 {[%clk 0:00:04.8]} 38. Nf6 {[%clk 0:00:26.2]} 38...
Rxe3 {[%clk 0:00:03.6]} 39. Nxd5 {[%clk 0:00:26.1]} 39... Re2 {[%clk 0:00:02.9]}
40. h7 {[%clk 0:00:25.9]} 40... Kg7 {[%clk 0:00:02.8]} 41. Kg3 {[%clk 0:00:19]}
41... Rxb2 {[%clk 0:00:03.1]} 42. Nf6 {[%clk 0:00:18.3]} 42... Kh8 {[%clk
0:00:03.3]} 43. f4 {[%clk 0:00:17.8]} 43... Rb5 {[%clk 0:00:03.7]} 44. Kg4
{[%clk 0:00:18.3]} 44... Rxa5 {[%clk 0:00:04]} 45. Kh4 {[%clk 0:00:17]} 45...
Rf5 {[%clk 0:00:04.5]} 46. Kg4 {[%clk 0:00:17.3]} 46... Rxf6 {[%clk 0:00:04.7]}
0-1

[Event "Late-Titled-Tuesday-Blitz-January-23-2024"]
[Site "Chess.com"]
[Date "2024.01.23"]
[Round "9"]
[White "Herman-NY"]
[Black "iulik86"]
[Result "0-1"]
[WhiteElo "2484"]
[BlackElo "2602"]
[TimeControl "180+1"]
[EndTime "15:42:39 PST"]
[Termination "iulik86 won on time"]

1. e4 {[%clk 0:03:00.9]} 1... c5 {[%clk 0:02:56]} 2. Nf3 {[%clk 0:03:01]} 2...
Nc6 {[%clk 0:02:55.6]} 3. Bb5 {[%clk 0:03:00.8]} 3... Nf6 {[%clk 0:02:54.4]} 4.
Nc3 {[%clk 0:02:57.9]} 4... Qc7 {[%clk 0:02:48.5]} 5. O-O {[%clk 0:02:21.2]}
5... Nd4 {[%clk 0:02:43.1]} 6. Nxd4 {[%clk 0:02:15.3]} 6... cxd4 {[%clk
0:02:43]} 7. Nd5 {[%clk 0:02:16]} 7... Nxd5 {[%clk 0:02:42.2]} 8. exd5 {[%clk
0:02:16.9]} 8... Qc5 {[%clk 0:02:42.2]} 9. c4 {[%clk 0:01:59.8]} 9... dxc3
{[%clk 0:02:37.2]} 10. Qb3 {[%clk 0:01:45.2]} 10... a6 {[%clk 0:02:30.4]} 11.
Be2 {[%clk 0:01:41.9]} 11... e6 {[%clk 0:02:20.2]} 12. Bf3 {[%clk 0:01:03.3]}
12... Be7 {[%clk 0:02:09.3]} 13. dxc3 {[%clk 0:00:35.7]} 13... O-O {[%clk
0:02:06.7]} 14. Be3 {[%clk 0:00:35.5]} 14... Qc7 {[%clk 0:02:06.4]} 15. Bb6
{[%clk 0:00:34.9]} 15... Qf4 {[%clk 0:02:00.6]} 16. Rfe1 {[%clk 0:00:25.5]}
16... Bd6 {[%clk 0:01:53.5]} 17. h3 {[%clk 0:00:19.4]} 17... Qh2+ {[%clk
0:01:47.5]} 18. Kf1 {[%clk 0:00:19.8]} 18... Bc7 {[%clk 0:01:47.6]} 19. Bxc7
{[%clk 0:00:16.9]} 19... Qxc7 {[%clk 0:01:47]} 20. Rad1 {[%clk 0:00:17.1]} 20...
d6 {[%clk 0:01:46.1]} 21. dxe6 {[%clk 0:00:16.3]} 21... Bxe6 {[%clk 0:01:42.4]}
22. Rxe6 {[%clk 0:00:15.8]} 22... fxe6 {[%clk 0:01:42]} 23. Qxe6+ {[%clk
0:00:16.7]} 23... Kh8 {[%clk 0:01:41.7]} 24. Qxd6 {[%clk 0:00:15.6]} 24... Qc4+
{[%clk 0:01:41.5]} 25. Qd3 {[%clk 0:00:09.3]} 25... Qxa2 {[%clk 0:01:39.4]} 26.
b4 {[%clk 0:00:05.7]} 26... Rac8 {[%clk 0:01:33]} 27. Kg1 {[%clk 0:00:03.9]}
27... Qb2 {[%clk 0:01:29.5]} 28. c4 {[%clk 0:00:01.8]} 28... Qxb4 {[%clk
0:01:28.1]} 29. Bd5 {[%clk 0:00:02.4]} 29... b5 {[%clk 0:01:25.5]} 30. Qd4
{[%clk 0:00:01.2]} 30... Qc5 {[%clk 0:01:22.5]} 31. Qh4 {[%clk 0:00:01.6]} 31...
bxc4 {[%clk 0:01:18.6]} 32. Be4 {[%clk 0:00:02]} 32... h6 {[%clk 0:01:18.2]} 33.
Rd5 {[%clk 0:00:02.3]} 33... Qc7 {[%clk 0:01:09.6]} 34. Qg4 {[%clk 0:00:02.2]}
34... Qf7 {[%clk 0:00:53.3]} 35. Rf5 {[%clk 0:00:02.1]} 35... Qe8 {[%clk
0:00:46.2]} 36. Rd5 {[%clk 0:00:02.4]} 36... Rf6 {[%clk 0:00:44.4]} 37. Rd7
{[%clk 0:00:02.3]} 37... Qf8 {[%clk 0:00:34.4]} 38. Bb1 {[%clk 0:00:02.2]} 38...
Rxf2 {[%clk 0:00:29.1]} 39. Qe4 {[%clk 0:00:02.6]} 39... Rf1+ {[%clk 0:00:28.7]}
40. Kh2 {[%clk 0:00:03.2]} 40... Rxb1 {[%clk 0:00:28.7]} 41. Qxb1 {[%clk
0:00:03.3]} 41... c3 {[%clk 0:00:29]} 42. Qc2 {[%clk 0:00:03.1]} 42... Qf4+
{[%clk 0:00:28.1]} 43. Kh1 {[%clk 0:00:03.5]} 43... Qf1+ {[%clk 0:00:24.6]} 44.
Kh2 {[%clk 0:00:03.4]} 44... Qf4+ {[%clk 0:00:24.5]} 45. Kh1 {[%clk 0:00:03.5]}
45... a5 {[%clk 0:00:23.8]} 46. Rd3 {[%clk 0:00:03]} 46... Qc4 {[%clk
0:00:19.6]} 47. Rg3 {[%clk 0:00:02.5]} 47... a4 {[%clk 0:00:14.7]} 48. Qg6
{[%clk 0:00:02.4]} 48... Qc7 {[%clk 0:00:14.8]} 0-1

[Event "Late-Titled-Tuesday-Blitz-January-23-2024"]
[Site "Chess.com"]
[Date "2024.01.23"]
[Round "9"]
[White "PawnEatingZombie"]
[Black "kai_nov"]
[Result "1-0"]
[WhiteElo "2119"]
[BlackElo "2273"]
[TimeControl "180+1"]
[EndTime "15:42:39 PST"]
[Termination "PawnEatingZombie won by checkmate"]

1. e4 {[%clk 0:03:00.9]} 1... c5 {[%clk 0:02:59]} 2. c3 {[%clk 0:03:00.5]} 2...
Nf6 {[%clk 0:02:56.8]} 3. e5 {[%clk 0:03:00.8]} 3... Nd5 {[%clk 0:02:56.9]} 4.
Nf3 {[%clk 0:03:01.3]} 4... Nc6 {[%clk 0:02:55.4]} 5. Bc4 {[%clk 0:03:00.4]}
5... Nb6 {[%clk 0:02:49.4]} 6. Bb3 {[%clk 0:03:00.3]} 6... d5 {[%clk 0:02:49.6]}
7. exd6 {[%clk 0:02:59.9]} 7... Qxd6 {[%clk 0:02:49.5]} 8. O-O {[%clk
0:03:00.2]} 8... c4 {[%clk 0:02:16.9]} 9. Bc2 {[%clk 0:02:59.8]} 9... Bg4 {[%clk
0:02:17.1]} 10. Re1 {[%clk 0:02:58.4]} 10... O-O-O {[%clk 0:02:12.8]} 11. h3
{[%clk 0:02:55.3]} 11... Bh5 {[%clk 0:02:07.8]} 12. a4 {[%clk 0:02:50.5]} 12...
Qf6 {[%clk 0:02:02.4]} 13. a5 {[%clk 0:02:42.9]} 13... Nd5 {[%clk 0:01:49.9]}
14. a6 {[%clk 0:02:37.9]} 14... b6 {[%clk 0:01:40.6]} 15. Na3 {[%clk 0:02:34.3]}
15... Nf4 {[%clk 0:01:06.7]} 16. Re3 {[%clk 0:02:06.2]} 16... Na5 {[%clk
0:00:37.9]} 17. Nb5 {[%clk 0:01:33.7]} 17... Kb8 {[%clk 0:00:36.7]} 18. d4
{[%clk 0:01:15.3]} 18... cxd3 {[%clk 0:00:34.2]} 19. Bxd3 {[%clk 0:01:14.9]}
19... e6 {[%clk 0:00:26.6]} 20. Nbd4 {[%clk 0:01:10.2]} 20... Bc5 {[%clk
0:00:21.3]} 21. Rxa5 {[%clk 0:00:58]} 21... bxa5 {[%clk 0:00:19.8]} 22. Qb3+
{[%clk 0:00:42.4]} 22... Bb6 {[%clk 0:00:18.7]} 23. Nc6+ {[%clk 0:00:38.2]}
23... Kc7 {[%clk 0:00:14.9]} 24. Nxd8 {[%clk 0:00:34.8]} 24... Rxd8 {[%clk
0:00:14.3]} 25. Bf1 {[%clk 0:00:27]} 25... Nd5 {[%clk 0:00:12.7]} 26. Rd3 {[%clk
0:00:22.7]} 26... Bg6 {[%clk 0:00:10.8]} 27. Rd1 {[%clk 0:00:20.5]} 27... Be4
{[%clk 0:00:10.7]} 28. Nd4 {[%clk 0:00:19.3]} 28... Ne7 {[%clk 0:00:08.6]} 29.
Be3 {[%clk 0:00:18.4]} 29... Qe5 {[%clk 0:00:07.1]} 30. Nb5+ {[%clk 0:00:16.3]}
30... Kc8 {[%clk 0:00:06.2]} 31. Rxd8+ {[%clk 0:00:16.4]} 31... Bxd8 {[%clk
0:00:05.9]} 32. Nxa7+ {[%clk 0:00:16.4]} 32... Kd7 {[%clk 0:00:06.2]} 33. Bb5+
{[%clk 0:00:09.9]} 33... Bc6 {[%clk 0:00:04.5]} 34. Nxc6 {[%clk 0:00:08.4]}
34... Nxc6 {[%clk 0:00:05.4]} 35. a7 {[%clk 0:00:08.2]} 35... Qd6 {[%clk
0:00:03.5]} 36. a8=Q {[%clk 0:00:07.3]} 36... Bc7 {[%clk 0:00:03.3]} 37. Qb7
{[%clk 0:00:06.4]} 37... Qh2+ {[%clk 0:00:03.1]} 38. Kf1 {[%clk 0:00:05.7]}
38... Qh1+ {[%clk 0:00:03.6]} 39. Ke2 {[%clk 0:00:06.3]} 39... Ke7 {[%clk
0:00:03.7]} 40. Qxc6 {[%clk 0:00:06.5]} 40... Kf6 {[%clk 0:00:04.6]} 41. Qxc7
{[%clk 0:00:06.2]} 41... Qb1 {[%clk 0:00:03.8]} 42. Qf4+ {[%clk 0:00:06.3]}
42... Kg6 {[%clk 0:00:04]} 43. Qg4+ {[%clk 0:00:06.4]} 43... Kf6 {[%clk
0:00:04.2]} 44. Qg5# {[%clk 0:00:06.2]} 1-0

[Event "Late-Titled-Tuesday-Blitz-January-23-2024"]
[Site "Chess.com"]
[Date "2024.01.23"]
[Round "9"]
[White "mbchess97"]
[Black "Balla_Tamas"]
[Result "1-0"]
[WhiteElo "2357"]
[BlackElo "2442"]
[TimeControl "180+1"]
[EndTime "15:42:41 PST"]
[Termination "mbchess97 won by resignation"]

1. c4 {[%clk 0:03:00.9]} 1... c5 {[%clk 0:02:59.1]} 2. g3 {[%clk 0:03:00.6]}
2... Nc6 {[%clk 0:02:59.1]} 3. Bg2 {[%clk 0:03:00.6]} 3... g6 {[%clk 0:02:59.6]}
4. Nc3 {[%clk 0:02:58.8]} 4... Bg7 {[%clk 0:03:00]} 5. Nf3 {[%clk 0:02:58.8]}
5... e6 {[%clk 0:03:00]} 6. d4 {[%clk 0:02:56.2]} 6... cxd4 {[%clk 0:02:58.4]}
7. Nb5 {[%clk 0:02:56.1]} 7... d5 {[%clk 0:02:58.5]} 8. cxd5 {[%clk 0:02:53.8]}
8... exd5 {[%clk 0:02:57.1]} 9. Nbxd4 {[%clk 0:02:49.7]} 9... Nge7 {[%clk
0:02:55.9]} 10. O-O {[%clk 0:02:49.1]} 10... O-O {[%clk 0:02:54.7]} 11. b3
{[%clk 0:02:31.4]} 11... Nxd4 {[%clk 0:02:43]} 12. Nxd4 {[%clk 0:02:30.8]} 12...
Qb6 {[%clk 0:02:43]} 13. Be3 {[%clk 0:02:25.6]} 13... Nc6 {[%clk 0:02:30.1]} 14.
Nxc6 {[%clk 0:02:14.2]} 14... Qxc6 {[%clk 0:02:28.9]} 15. Bxd5 {[%clk
0:02:12.9]} 15... Qb5 {[%clk 0:02:07.5]} 16. Rc1 {[%clk 0:01:57.2]} 16... Bh3
{[%clk 0:01:55.6]} 17. Bg2 {[%clk 0:01:52.7]} 17... Bxg2 {[%clk 0:01:55.5]} 18.
Kxg2 {[%clk 0:01:52.7]} 18... Rad8 {[%clk 0:01:55.7]} 19. Qc2 {[%clk 0:01:51.9]}
19... Rfe8 {[%clk 0:01:54.2]} 20. Rfd1 {[%clk 0:01:46.4]} 20... h5 {[%clk
0:01:45.7]} 21. h4 {[%clk 0:01:43.7]} 21... a6 {[%clk 0:01:35.4]} 22. a4 {[%clk
0:01:38.3]} 22... Qe5 {[%clk 0:01:30.5]} 23. Rxd8 {[%clk 0:01:26.1]} 23... Rxd8
{[%clk 0:01:31.4]} 24. Qc7 {[%clk 0:01:20.3]} 24... Qd5+ {[%clk 0:01:29.1]} 25.
Kh2 {[%clk 0:01:17]} 25... Re8 {[%clk 0:01:27.5]} 26. Qc4 {[%clk 0:01:04.9]}
26... Qf5 {[%clk 0:01:21.6]} 27. Qd3 {[%clk 0:00:56.4]} 27... Qe6 {[%clk
0:01:15.2]} 28. Rc7 {[%clk 0:00:51]} 28... b5 {[%clk 0:00:57.8]} 29. axb5 {[%clk
0:00:41.4]} 29... Be5 {[%clk 0:00:49]} 30. Rc6 {[%clk 0:00:38.3]} 30... Qe7
{[%clk 0:00:42.3]} 31. Bg5 {[%clk 0:00:37.9]} 31... Qa7 {[%clk 0:00:36.7]} 32.
Be3 {[%clk 0:00:25]} 32... Qe7 {[%clk 0:00:36]} 33. Bg5 {[%clk 0:00:17.5]} 33...
Qa7 {[%clk 0:00:28.1]} 34. b6 {[%clk 0:00:17.5]} 34... Qb7 {[%clk 0:00:23.4]}
35. Qc4 {[%clk 0:00:17.4]} 35... Rf8 {[%clk 0:00:12.6]} 36. Rxg6+ {[%clk
0:00:17]} 36... Kh7 {[%clk 0:00:12.5]} 37. Rh6+ {[%clk 0:00:16.6]} 37... Kg7
{[%clk 0:00:12.9]} 38. Rc6 {[%clk 0:00:14.7]} 38... Qd7 {[%clk 0:00:11.8]} 39.
Bh6+ {[%clk 0:00:10.8]} 39... Kh7 {[%clk 0:00:10.7]} 40. Qe4+ {[%clk 0:00:10.8]}
40... Kg8 {[%clk 0:00:02.6]} 41. Qxe5 {[%clk 0:00:10.9]} 41... f6 {[%clk
0:00:03.3]} 42. Qe6+ {[%clk 0:00:10.5]} 42... Qxe6 {[%clk 0:00:03.4]} 43. Rxe6
{[%clk 0:00:10.8]} 43... Kh7 {[%clk 0:00:04.1]} 44. Bxf8 {[%clk 0:00:10.7]} 1-0

[Event "Late-Titled-Tuesday-Blitz-January-23-2024"]
[Site "Chess.com"]
[Date "2024.01.23"]
[Round "9"]
[White "RodokininEV"]
[Black "Actuary44"]
[Result "1-0"]
[WhiteElo "2625"]
[BlackElo "2491"]
[TimeControl "180+1"]
[EndTime "15:42:42 PST"]
[Termination "RodokininEV won by checkmate"]

1. e4 {[%clk 0:02:53.4]} 1... b6 {[%clk 0:02:59.7]} 2. d4 {[%clk 0:02:52.7]}
2... Bb7 {[%clk 0:03:00.3]} 3. Bd3 {[%clk 0:02:53.3]} 3... e6 {[%clk 0:03:00.6]}
4. Nf3 {[%clk 0:02:53.5]} 4... Nf6 {[%clk 0:03:01.2]} 5. Qe2 {[%clk 0:02:52.2]}
5... d5 {[%clk 0:03:01.8]} 6. Nbd2 {[%clk 0:02:51.8]} 6... c5 {[%clk 0:03:01.1]}
7. e5 {[%clk 0:02:50.9]} 7... Nfd7 {[%clk 0:03:01.3]} 8. c3 {[%clk 0:02:50.9]}
8... Nc6 {[%clk 0:03:01.9]} 9. a3 {[%clk 0:02:49.5]} 9... Qc7 {[%clk 0:03:02.5]}
10. O-O {[%clk 0:02:49.2]} 10... O-O-O {[%clk 0:03:02.8]} 11. b4 {[%clk
0:02:49.1]} 11... c4 {[%clk 0:03:02.6]} 12. Bc2 {[%clk 0:02:47]} 12... h6 {[%clk
0:03:03.2]} 13. a4 {[%clk 0:02:46.8]} 13... Re8 {[%clk 0:03:03.4]} 14. a5 {[%clk
0:02:45.6]} 14... b5 {[%clk 0:03:03.7]} 15. a6 {[%clk 0:02:45.2]} 15... Ba8
{[%clk 0:03:04]} 16. Nb1 {[%clk 0:02:23.1]} 16... f5 {[%clk 0:03:02.5]} 17. exf6
{[%clk 0:02:22.3]} 17... gxf6 {[%clk 0:03:03.4]} 18. Na3 {[%clk 0:02:20.7]}
18... Qb6 {[%clk 0:03:00.2]} 19. Bf4 {[%clk 0:02:19.7]} 19... Rg8 {[%clk
0:02:47.3]} 20. Bg3 {[%clk 0:02:18.4]} 20... e5 {[%clk 0:02:41.7]} 21. Bf5
{[%clk 0:02:13.8]} 21... Bd6 {[%clk 0:02:29.2]} 22. dxe5 {[%clk 0:01:58.1]}
22... fxe5 {[%clk 0:02:27.4]} 23. Rfd1 {[%clk 0:01:53.6]} 23... d4 {[%clk
0:02:09.3]} 24. Nxc4 {[%clk 0:01:28]} 24... bxc4 {[%clk 0:02:07.7]} 25. Qxc4
{[%clk 0:01:28.9]} 25... Kd8 {[%clk 0:01:53.7]} 26. Bh4+ {[%clk 0:01:14.8]}
26... Be7 {[%clk 0:01:47]} 27. Qe6 {[%clk 0:01:04]} 27... Qc7 {[%clk 0:00:42.8]}
28. Qd5 {[%clk 0:00:22.6]} 28... Bxh4 {[%clk 0:00:38.8]} 29. Nxh4 {[%clk
0:00:22.7]} 29... Ke7 {[%clk 0:00:30.9]} 30. b5 {[%clk 0:00:20.8]} 30... Na5
{[%clk 0:00:24.7]} 31. Qe6+ {[%clk 0:00:17.8]} 31... Kd8 {[%clk 0:00:24.6]} 32.
Qxd7+ {[%clk 0:00:15.8]} 32... Qxd7 {[%clk 0:00:23.9]} 33. Bxd7 {[%clk
0:00:16.7]} 33... Kxd7 {[%clk 0:00:24.7]} 34. Rxa5 {[%clk 0:00:17]} 34... Rg4
{[%clk 0:00:22.7]} 35. g3 {[%clk 0:00:14.3]} 35... Kc7 {[%clk 0:00:16.5]} 36.
cxd4 {[%clk 0:00:12.2]} 36... exd4 {[%clk 0:00:15.1]} 37. f4 {[%clk 0:00:10.3]}
37... Kb6 {[%clk 0:00:12.1]} 38. Ra4 {[%clk 0:00:09.9]} 38... Kxb5 {[%clk
0:00:07.5]} 39. Raxd4 {[%clk 0:00:09.8]} 39... Rgg8 {[%clk 0:00:03.7]} 40. Rb1+
{[%clk 0:00:07.4]} 40... Kc5 {[%clk 0:00:04.2]} 41. Nf5 {[%clk 0:00:05.6]} 41...
Rb8 {[%clk 0:00:04]} 42. Rc1+ {[%clk 0:00:04.1]} 42... Kb5 {[%clk 0:00:04.4]}
43. Rd2 {[%clk 0:00:02.7]} 43... Be4 {[%clk 0:00:02.9]} 44. Rb2+ {[%clk
0:00:02.5]} 44... Kxa6 {[%clk 0:00:02.6]} 45. Ra1# {[%clk 0:00:02.8]} 1-0

[Event "Late-Titled-Tuesday-Blitz-January-23-2024"]
[Site "Chess.com"]
[Date "2024.01.23"]
[Round "9"]
[White "Bkmzzzzz"]
[Black "SEBAZZANO"]
[Result "1-0"]
[WhiteElo "2418"]
[BlackElo "2223"]
[TimeControl "180+1"]
[EndTime "15:42:47 PST"]
[Termination "Bkmzzzzz won on time"]

1. e4 {[%clk 0:02:58.1]} 1... e6 {[%clk 0:02:58]} 2. Nf3 {[%clk 0:02:55.1]} 2...
d5 {[%clk 0:02:57.2]} 3. exd5 {[%clk 0:02:56]} 3... exd5 {[%clk 0:02:56.7]} 4.
d4 {[%clk 0:02:56.6]} 4... Nf6 {[%clk 0:02:56.7]} 5. Bd3 {[%clk 0:02:56]} 5...
Be7 {[%clk 0:02:56.9]} 6. O-O {[%clk 0:02:56.4]} 6... O-O {[%clk 0:02:57.3]} 7.
h3 {[%clk 0:02:55.6]} 7... c6 {[%clk 0:02:57.2]} 8. Re1 {[%clk 0:02:55.8]} 8...
Nbd7 {[%clk 0:02:55.9]} 9. Bg5 {[%clk 0:02:55.7]} 9... Re8 {[%clk 0:02:56.1]}
10. c4 {[%clk 0:02:54.4]} 10... Nf8 {[%clk 0:02:52.8]} 11. Nc3 {[%clk
0:02:53.6]} 11... dxc4 {[%clk 0:02:41.9]} 12. Bxc4 {[%clk 0:02:53.1]} 12... Be6
{[%clk 0:02:41.9]} 13. Bd3 {[%clk 0:02:48.2]} 13... Nd5 {[%clk 0:02:30.4]} 14.
Bxe7 {[%clk 0:02:41.9]} 14... Rxe7 {[%clk 0:02:19.5]} 15. Ng5 {[%clk 0:02:25.8]}
15... Nxc3 {[%clk 0:02:12]} 16. bxc3 {[%clk 0:02:26.7]} 16... h6 {[%clk
0:02:01.4]} 17. Nxe6 {[%clk 0:02:15.7]} 17... Rxe6 {[%clk 0:02:00]} 18. Qg4
{[%clk 0:02:10.9]} 18... Qe7 {[%clk 0:01:46.3]} 19. Rxe6 {[%clk 0:02:02.4]}
19... Qxe6 {[%clk 0:01:47.2]} 20. Qxe6 {[%clk 0:01:59.9]} 20... Nxe6 {[%clk
0:01:46.1]} 21. Rb1 {[%clk 0:02:00.5]} 21... b6 {[%clk 0:01:41.5]} 22. Be4
{[%clk 0:01:49.9]} 22... Rc8 {[%clk 0:01:34.3]} 23. Rd1 {[%clk 0:01:50]} 23...
Kf8 {[%clk 0:01:29.7]} 24. g3 {[%clk 0:01:41.8]} 24... Ke7 {[%clk 0:01:22.5]}
25. h4 {[%clk 0:01:42]} 25... Kd6 {[%clk 0:01:18]} 26. f4 {[%clk 0:01:33.4]}
26... Nc7 {[%clk 0:01:00.9]} 27. Kf2 {[%clk 0:01:30.2]} 27... Re8 {[%clk
0:01:00]} 28. Bf3 {[%clk 0:01:22.9]} 28... b5 {[%clk 0:00:42.5]} 29. a4 {[%clk
0:00:45]} 29... a6 {[%clk 0:00:38.6]} 30. axb5 {[%clk 0:00:44.2]} 30... axb5
{[%clk 0:00:37.9]} 31. Bh5 {[%clk 0:00:37.9]} 31... g6 {[%clk 0:00:32.1]} 32.
Bf3 {[%clk 0:00:36.9]} 32... Nd5 {[%clk 0:00:29.9]} 33. Rc1 {[%clk 0:00:36.9]}
33... Ra8 {[%clk 0:00:15.6]} 34. Ke2 {[%clk 0:00:18.8]} 34... Ra2+ {[%clk
0:00:13.4]} 35. Kd3 {[%clk 0:00:19.5]} 35... Rf2 {[%clk 0:00:11.6]} 36. Be4
{[%clk 0:00:17.2]} 36... f5 {[%clk 0:00:08.9]} 37. Bh1 {[%clk 0:00:17.2]} 37...
Rh2 {[%clk 0:00:06.7]} 38. Rg1 {[%clk 0:00:15.1]} 38... Rh3 {[%clk 0:00:05.9]}
39. Bf3 {[%clk 0:00:14.7]} 39... Rh2 {[%clk 0:00:02.7]} 40. Bxd5 {[%clk
0:00:12.2]} 40... Kxd5 {[%clk 0:00:02.1]} 41. Re1 {[%clk 0:00:11.3]} 41... Rg2
{[%clk 0:00:01.9]} 42. Re3 {[%clk 0:00:11.8]} 42... Kd6 {[%clk 0:00:01.9]} 43.
Rf3 {[%clk 0:00:11.9]} 43... Kd5 {[%clk 0:00:01.9]} 44. Re3 {[%clk 0:00:11.6]}
44... Kd6 {[%clk 0:00:01.8]} 45. c4 {[%clk 0:00:09.5]} 45... bxc4+ {[%clk
0:00:01.4]} 46. Kxc4 {[%clk 0:00:10.4]} 46... Rc2+ {[%clk 0:00:01.4]} 47. Kb3
{[%clk 0:00:10.5]} 1-0